{"text_format":"1","workbook":"xlsx","n_sheets":1,"sheets":["Sheet1"],"not_rendered":{"charts":0,"images":0,"macros":1,"external_links":0,"defined_names":0,"comments":0,"pivot_tables":0},"unopened":[],"bounds":{"document_bytes":16777216,"sheet_cells":100000,"rows_first":2000,"rows_last":500,"rows_between":2000,"halvings":0,"cell_chars":16384,"cell_head_chars":4096},"cells_cut":0,"cells_raw":0,"read":"whole","date_system":"1900"}

{"sheet":"Sheet1","index":0,"n_rows":14,"n_cols":27,"rows_kept":14,"cut":false,"hidden":false,"merged":[]}
["Lingfield 20th Feb - 14:05 2m Nov Hrd",null,null,"14:15:00",null,"Horse Racing\\GB\\Lingfield 20th Feb",null,"BFSP","Y","Streaming","PO",null,"Parent id",34048539,"Version",6449926150]
["Last updated:",45708.334642638889,"08:01:53","06:03:07","Not In Play",null,null,"Balance:",0.21,null,"Exposure:",0,"Trans:",0,null,"Refresh rate(1.0):"]
["Total matched:",2379.9499999999998,null,"Winners",1,"NR",1,"Turn IP","Y",26,"IR Delay",0,"Market id",239780826,"Comm:",2]
["Selection name","Back Odds 3",null,"Back Odds 2",null,"Back Odds 1",null,"Lay Odds 1",null,"Lay Odds 2",null,"Lay Odds 3",null,"Reduction factor","Last price matched","Total amount matched","Trigger","Odds","Stake","Bet ref","Bet time","Avg matched odds","Matched stake","Profit / Loss",null,"Historic Back Odds","Historic Lay Odds"]
["Rula Bula",2.08,15,2.1,64,2.12,7,2.1800000000000002,4,2.2000000000000002,2,2.2200000000000002,2,37.929000000000002,2.1,1171.3800000000001,null,null,null,null,null,0,0,0,null,{"$f":"getPreviousPrice(F5,10)","v":2.1},{"$f":"getPreviousPrice(H5,10)","v":2.1800000000000002}]
["Game Colours",2.8,11,2.82,8,2.84,3,2.86,17,2.92,5,2.94,25,25.943999999999999,2.78,926.17,null,null,null,null,null,0,0,0,null,{"$f":"getPreviousPrice(F6,10)","v":2.84},{"$f":"getPreviousPrice(H6,10)","v":2.86}]
["Miss Dishy",7,5,7.2,12,7.4,11,7.6,2,7.8,17,8,1,23.951000000000001,7.4,240.49,null,null,null,null,null,0,0,0,null,{"$f":"getPreviousPrice(F7,10)","v":7.4},{"$f":"getPreviousPrice(H7,10)","v":7.6}]
["Cracker Muddle",29,1,30,1,32,3,34,2,48,2,50,1,8.0609999999999999,32,21.47,null,null,null,null,null,0,0,0,null,{"$f":"getPreviousPrice(F8,10)","v":32},{"$f":"getPreviousPrice(H8,10)","v":34}]
["Kupka Vallis",34,2,38,4,40,3,48,1,55,1,70,1,3.96,29,14.4,null,null,null,null,null,0,0,0,null,{"$f":"getPreviousPrice(F9,10)","v":40},{"$f":"getPreviousPrice(H9,10)","v":48}]
["Surrey Nemesis",85,2,120,2,1000,109,0,0,0,0,0,0,0.154,1000,6.04,null,null,null,null,null,0,0,0,null,{"$f":"getPreviousPrice(F10,10)","v":1000},{"$f":"getPreviousPrice(H10,10)","v":0}]
[null,null,null,null,null,null,null,null,null,null,null,null,null,null,null,null,null,null,null,null,null,0,0,null,null,{"$f":"getPreviousPrice(F11,10)","v":95},{"$f":"getPreviousPrice(H11,10)","v":260}]
[null,null,null,null,null,null,null,null,null,null,null,null,null,null,null,null,null,null,null,null,null,0,0,null,null,{"$f":"getPreviousPrice(F12,10)","v":100},{"$f":"getPreviousPrice(H12,10)","v":300}]
[null,null,null,null,null,null,null,null,null,null,null,null,null,null,null,null,null,null,null,null,null,0,0,null,null,{"$f":"getPreviousPrice(F13,10)","v":0},{"$f":"getPreviousPrice(H13,10)","v":0}]
[null,null,null,null,null,null,null,null,null,null,null,null,null,null,null,null,null,null,null,null,null,null,null,null,null,{"$f":"getPreviousPrice(F14,10)","v":210},{"$f":"getPreviousPrice(H14,10)","v":700}]